Cogmind - Beta 17.1 @@@ ROGUE MODE // 2026.09.01 @ 01:29:48 Player: BigMaxPorter Result: Destroyed by H-55 Commando with Gauss Rifle Performance ------------- Evolutions (3) 1500 Regions Visited (5) 1000 Robots Destroyed (52) 260 Value Destroyed (2110) 2110 Prototype IDs (1) 20 Alien Tech Used (0) 0 Bonus (283) 283 TOTAL SCORE: 5173 Bonus ------- High Alert Combat Kills 83 Entered Garrisons 200 Cogmind --------- Core Integrity 0/700 Matter 295/300 Energy 94/100 System Corruption 12% Temperature Cool (0) Movement Core (200) Ox3 Location -7/Garrison Parts ------- > --- POWER (2) -------- (None) > --- PROPULSION (4) --- (None) > --- UTILITY (4) ------ Medium Storage Unit Improved Targeting Computer > --- WEAPON (3) ------- Improved Datajack > --- INVENTORY (10) --- Light Nuclear Core Light Nuclear Core Aluminum Leg Aluminum Leg Aluminum Leg Aluminum Leg Improved Heat Sink Peak State ------------ > --- POWER ------------ Improved Deuterium Engine Improved Deuterium Engine > --- PROPULSION ------- Carbon-fiber Leg Titanium Leg Titanium Leg Titanium Leg > --- UTILITY ---------- Improved Cooling System Medium Storage Unit Compact Matter Pod Improved Targeting Computer > --- WEAPON ----------- Particle Gun Gauss Rifle Flak Gun > --- INVENTORY -------- Improved Deuterium Engine Aluminum Leg Aluminum Leg Titanium Leg Titanium Leg Improved Targeting Computer EM Pulse Gun Particle Gun Improved Datajack [Rating: 42] Favorites ----------- Power Light Nuclear Core Engine Improved Deuterium Engine Power Core Light Nuclear Core Propulsion Aluminum Leg Leg Aluminum Leg Utility Medium Storage Unit Device ECM Suite Storage Medium Storage Unit Processor Improved Targeting Computer Protection Light Armor Plating Weapon Improved Light Cannon Energy Gun Particle Gun Energy Cannon Advanced Beam Cannon Ballistic Gun Flak Gun Ballistic Cannon Improved Light Cannon Launcher Rocket Launcher Special Melee Weapon Improved Datajack Build | -11 -10 -9 -8 -7 -7 ------- Run | Yrd Mat Mat Mat Fac Gar Slots Evolved 6 | . . 2 2 2 . Power 1 | . . . . 1 . Propulsion 2 | . . 1 1 . . Utility 2 | . . 1 . 1 . Weapon 1 | . . . 1 . . Parts Attached 59 | 6 5 8 11 9 20 Power 8 | 1 . . 2 2 3 Engine 4 | 1 . . . 2 1 Core 4 | . . . 2 . 2 Reactor . | . . . . . . Propulsion 23 | 2 . 6 7 2 6 Treads . | . . . . . . Leg 23 | 2 . 6 7 2 6 Wheel . | . . . . . . Hover . | . . . . . . Flight . | . . . . . . Utility 12 | 1 2 2 1 1 5 Device 3 | . 2 . . . 1 Storage 3 | 1 . 1 . . 1 Processor 4 | . . 1 . 1 2 Hackware . | . . . . . . Protection 2 | . . . 1 . 1 Artifact . | . . . . . . Weapon 16 | 2 3 . 1 4 6 Energy Gun 7 | 2 . . . 1 4 Energy Cannon 2 | . 2 . . . . Ballistic Gun 4 | . . . . 2 2 Ballistic Cannon 1 | . 1 . . . . Launcher 1 | . . . 1 . . Special Weapon . | . . . . . . Impact Weapon . | . . . . . . Slashing Weapon . | . . . . . . Piercing Weapon . | . . . . . . Special Melee Weapon 1 | . . . . 1 . Unidentified Prototypes 1 | . 1 . . . . Parts Lost 30 | . 1 . . 8 21 Power 6 | . . . . 2 4 Propulsion 8 | . . . . . 8 Utility 7 | . . . . 3 4 Weapon 9 | . 1 . . 3 5 Highest Loss Streak 12 | . 1 . . 8 12 To Critical Strikes . | . . . . . . Average Backups 7 | 2 5 8 9 8 8 Power 1 | . 1 1 1 . 1 Propulsion 2 | 1 2 . 1 2 3 Utility 1 | . . 3 3 2 . Weapon 2 | . 1 2 2 1 1 Tool/Special . | . . . . . . Unused Backups 15 | . 4 3 3 . 5 Power 6 | . . 2 2 . 2 Propulsion 5 | . 3 . . . 2 Utility 3 | . . 1 1 . 1 Weapon 1 | . 1 . . . . Tool/Special . | . . . . . . Average Slot Usage (%) 93 | . 97 96 93 82 93 Engine 6 | . 14 11 1 4 6 Core 5 | . . . 7 7 7 Leg 30 | . 28 30 34 30 27 Device 7 | . 11 11 9 3 3 Storage 11 | . 14 11 9 7 14 Processor 5 | . . 10 1 3 6 Protection 3 | . . . 7 3 3 Energy Gun 6 | . 23 . . 1 9 Energy Cannon 6 | . 3 11 11 7 . Ballistic Gun 4 | . . . . 5 10 Ballistic Cannon 4 | . 1 11 8 4 . Peak Build Rating 42 | 6 10 14 26 33 42 Average Rating 22 | 4 7 13 19 29 33 On Entrance 14 | . 6 10 14 26 33 Avg Prop Armor Cover (%) 6 | . . . . 6 . Naked Turns . | . . . . . . Heaviest Build 44 | 13 20 25 32 41 44 Greatest Support 68 | 20 20 30 68 68 68 Greatest Overweight (x) 3 | 3 . . . . 3 Average Overweight (x) . | . . . . . . Largest Inventory Capacity 10 | 8 8 10 10 10 10 Average Capacity 9 | 7 8 9 10 10 10 Most Carried 10 | 5 8 10 10 10 10 Average Carried 8 | 2 5 8 9 8 8 Final Capacity 10 | 8 8 10 10 10 10 Final Carried 10 | 5 6 9 10 8 7 Class Distribution -------------------- 35% | Mutant 28% | Scavenger-Gunner 17% | Scavenger-Mutant 10% | Tank 9% | Scavenger-Tank Dominant Class ---------------- Mutant | -10/Materials Mutant | -9/Materials Scavenger-Tank | -8/Materials Tank | -7/Factory Scavenger-Gunner | -7/Garrison Resources | -11 -10 -9 -8 -7 -7 ----------- Run | Yrd Mat Mat Mat Fac Gar Matter Collected 1765 | 198 27 289 185 170 896 Remotely . | . . . . . . Salvage Created 1952 | . 27 547 401 277 700 Parts 105 | . 3 27 21 12 42 Haulers Intercepted . | . . . . . . Recyclers Shooed 2 | . . 2 . . . Parts Field Recycled . | . . . . . . Retrieved Matter . | . . . . . . Parts Self-Destructed . | . . . . . . Prevented . | . . . . . . Parts Restored . | . . . . . . Kills | -11 -10 -9 -8 -7 -7 ------- Run | Yrd Mat Mat Mat Fac Gar Combat Hostiles Destroyed 50 | . . 14 9 6 21 Melee 2 | . . . . . 2 Guns 22 | . . . . 3 19 Cannons 22 | . . 14 8 . . AOE 2 | . . . . 2 . Classes Destroyed 9 | . 1 2 2 2 2 Worker 1 | . . . 1 . . Watcher 1 | . 1 . . . . Swarmer 8 | . . . . . 8 Saboteur 2 | . . . . . 2 Grunt 29 | . . 11 6 3 9 Brawler 1 | . . . . 1 . Duelist 1 | . . . . 1 . Sentry 7 | . . 3 2 1 1 Hunter 2 | . . . 1 . 1 Best Kill Streak 6 | . 1 5 6 4 5 Combat Bots Only 5 | . . 5 5 4 5 Max Kills in Single Turn 2 | . 1 1 1 2 2 Gunslinging 1 | . . . . . 1 Exploded 2 | . . . . 2 . Melee 1 | . . . . . 1 Uniques/NPCs Destroyed . | . . . . . . Combat | -11 -10 -9 -8 -7 -7 -------- Run | Yrd Mat Mat Mat Fac Gar Hostile Shots Fired 507 | . . 48 57 108 294 Missed 177 | . . 21 18 28 110 Hits 330 | . . 27 39 80 184 Melee 9 | . . . . 6 3 Projectile 321 | . . 27 39 74 181 Critical Strikes 12 | . . 2 3 1 6 Actively Blocked 1 | . . . . . 1 Damage Taken 4511 | . . 341 568 967 2635 Core 841 | . . 61 73 87 620 Absorbed by Shields . | . . . . . . Redirected to Shielding 51 | . . . . . 51 Regen/Repaired (Parts) 281 | . . . 281 . . Core Remaining (%) 92 | 100 100 84 86 . . Volleys Fired 140 | . 2 34 29 19 56 Largest 3 | . 2 2 3 3 3 Hottest 161 | . 80 101 161 161 158 Shots Fired 312 | . 4 67 66 38 137 Gun 155 | . 4 . . 14 137 Cannon 156 | . . 67 66 23 . Launcher 1 | . . . . 1 . Special . | . . . . . . Kinetic 171 | . . 34 29 21 87 Thermal 136 | . 2 33 37 14 50 Explosive 1 | . . . . 1 . Electromagnetic 4 | . 2 . . 2 . Robot Hit Streak 11 | . 1 10 6 9 11 Robot Miss Streak 15 | . 2 3 4 3 15 Penetration Max . | . . . . . . Secondary Targets 8 | . . . . . 8 Max Gunslinging Chain 2 | . . . . . 2 Shots Hit Robots 191 | . 1 39 39 27 85 Core Hits 124 | . 1 16 16 19 72 Critical Kills 3 | . . . 1 1 1 Critical Parts Destroyed 1 | . . . . 1 . Critical Strikes 5 | . . 1 1 2 1 Meltdown 2 | . . . 1 1 . Destroy 2 | . . . . 1 1 Blast 1 | . . 1 . . . Melee Attacks 1 | . . . . . 1 Impact . | . . . . . . Slashing . | . . . . . . Piercing . | . . . . . . Sneak Attacks . | . . . . . . Combat Hostiles . | . . . . . . Follow-up Attacks . | . . . . . . Damage Inflicted 3846 | . 20 832 882 749 1363 Guns 1627 | . 20 . . 244 1363 Cannons 1990 | . . 814 882 294 . Explosions 211 | . . . . 211 . Melee . | . . . . . . Ramming 18 | . . 18 . . . Kinetic 2097 | . . 401 446 347 903 Thermal 1476 | . . 413 436 167 460 Explosive 134 | . . . . 134 . Electromagnetic 121 | . 20 . . 101 . Impact . | . . . . . . Slashing . | . . . . . . Piercing . | . . . . . . Highest Corruption 12 | . . . . 12 12 Average Corruption 11 | . . . . 9 12 Corruption Purged . | . . . . . . Corruption Blocked . | . . . . . . Effects 38 | . . . . 7 31 Message Errors 10 | . . . . 2 8 Matter Fused 7 | . . . . . 7 Heat Flow Errors 4 | . . . . . 4 Energy Discharges 6 | . . . . 2 4 Parts Rejected 1 | . . . . 1 . Data Loss (major) 4 | . . . . 1 3 Misfires 2 | . . . . . 2 Alerts 2 | . . . . 1 1 Weapon Failures 2 | . . . . . 2 Overload Shots . | . . . . . . Overflow Damage 8 | . . . 8 . . Projectiles 8 | . . . 8 . . Explosions . | . . . . . . Melee . | . . . . . . Knockbacks 4 | . . 1 2 1 . Impact . | . . . . . . Kinetic 4 | . . 1 2 1 . Secondary . | . . . . . . Self-Inflicted Damage 86 | . . . . 86 . Shots 3 | . . . . 3 . Rammed . | . . . . . . Targets Rammed 4 | . . 4 . . . Kicked 4 | . . 4 . . . Crushed . | . . . . . . Highest Temperature 623 | . 18 240 429 556 623 Average Temperature 168 | . 12 82 192 344 154 Received Heat Transfer 1437 | . . 207 306 249 675 Effects 32 | . . . 7 10 15 Shutdowns 8 | . . . 1 3 4 Energy Bleed 8 | . . . 4 1 3 Interference 6 | . . . 1 1 4 Matter Decay 3 | . . . 1 1 1 Short Circuit 3 | . . . . 2 1 Damage (minor) 3 | . . . . 2 1 Damage (core) 1 | . . . . . 1 Siege Activations . | . . . . . . Martial Activations . | . . . . . . Shielding Activations . | . . . . . . Robots Disrupted . | . . . . . . Combat Hostiles . | . . . . . . Robots Corrupted . | . . . . . . Combat Hostiles . | . . . . . . Parts Fried . | . . . . . . Impact Corruptions . | . . . . . . Robots Melted 2 | . . . 1 1 . Combat Hostiles 2 | . . . 1 1 . Parts Melted 4 | . . . 3 1 . Heat Transferred 2923 | . . 740 814 333 1036 Parts Sabotaged 7 | . . . . . 7 Parts Stolen . | . . . . . . Parts Stripped . | . . . . . . Power Chain Reactions . | . . . . . . Alert | -11 -10 -9 -8 -7 -7 ------- Run | Yrd Mat Mat Mat Fac Gar Maximum Alert Level 2 | . . 1 . . 2 Low Security (%) 71 | 100 100 92 100 100 22 Level 1 6 | . . 8 . . 13 Level 2 22 | . . . . . 63 Level 3 . | . . . . . . Level 4 . | . . . . . . Level 5 . | . . . . . . High Security . | . . . . . . Max Security . | . . . . . . Peak Influence 575 | . 7 222 185 126 575 Initial 90 | . . . 90 52 81 Average 189 | . . 99 133 75 374 Influence Increases 1514 | . 12 392 272 244 594 Destroy 0b10 Robot/C 1000 | . . 280 180 120 420 Destroy 0b10 Robot/NC 10 | . 5 . 5 . . Destroy Leader 192 | . 2 80 50 40 20 Successful Hack 52 | . 5 13 6 14 14 Disable Machine 105 | . . 15 30 60 . Anti-Garrison Action 50 | . . . . . 50 Destroy Structure 15 | . . 4 1 10 . Lose Combat Pursuer 90 | . . . . . 90 Influence Decreases 1049 | . 12 178 370 244 245 Entered New Map 223 | . . . 124 64 35 Time Decay 536 | . 12 178 246 100 . Lost Part 290 | . . . . 80 210 Squads Dispatched 10 | . . 4 3 3 . Investigation 4 | . . 3 1 . . Extermination . | . . . . . . Reinforcement 4 | . . 1 2 1 . Assault . | . . . . . . Garrison 2 | . . . . 2 . Intercept . | . . . . . . Searches Triggered . | . . . . . . Construction Impeded . | . . . . . . Haulers Reinforced . | . . . . . . Active Scanning Responses . | . . . . . . Cargo Convoy Interrupts . | . . . . . . Stealth | -11 -10 -9 -8 -7 -7 --------- Run | Yrd Mat Mat Mat Fac Gar Distress Signals 4 | . . 3 1 . . Communications Jammed . | . . . . . . Distress Signals . | . . . . . . Times Spotted 72 | . 2 22 13 8 27 Peak Tracking Total 7 | . 1 3 4 4 7 Tactical Retreats 4 | . . 2 . . 2 ECM-based Alert Blocks 3 | . . 3 . . . Traps | -11 -10 -9 -8 -7 -7 ------- Run | Yrd Mat Mat Mat Fac Gar Traps Triggered 5 | . . . . 3 2 Indirectly 3 | . . . . 3 . Trap Hack Attempts . | . . . . . . Triggered . | . . . . . . Disarmed 6 | . . 6 . . . Reprogrammed . | . . . . . . Reused . | . . . . . . Traps Extracted . | . . . . . . Installed . | . . . . . . Triggered . | . . . . . . Machines | -11 -10 -9 -8 -7 -7 ---------- Run | Yrd Mat Mat Mat Fac Gar Machines Disabled 7 | . . 1 2 4 . Max in Single Turn 2 | . . 1 1 2 . Machines Repaired . | . . . . . . Machines Dismantled . | . . . . . . Machines Sabotaged . | . . . . . . Overloaded Fab Kills . | . . . . . . Hacking | -11 -10 -9 -8 -7 -7 --------- Run | Yrd Mat Mat Mat Fac Gar Machines Accessed 10 | . 2 3 2 1 2 Terminals 5 | . 2 1 . . 2 Fabricators . | . . . . . . Repair Stations 2 | . . . 2 . . Recycling Units 1 | . . 1 . . . Scanalyzers 1 | . . 1 . . . Garrison Access 1 | . . . . 1 . Total Hacks 38 | . 6 18 10 1 3 Successful 25 | . 3 12 8 1 1 Failed 13 | . 3 6 2 . 2 Catastrophic 5 | . 1 2 . . 2 Database Lockouts . | . . . . . . Manual 5 | . . 5 . . . Terminals 18 | . 6 9 . . 3 Fabricators . | . . . . . . Repair Stations 10 | . . . 10 . . Recycling Units 3 | . . 3 . . . Scanalyzers 6 | . . 6 . . . Garrison Access 1 | . . . . 1 . Terminal Hacks 9 | . 3 5 . . 1 Record 3 | . 1 2 . . . Locate Traps 1 | . . 1 . . . Disarm Traps 1 | . . 1 . . . Assault Status 1 | . 1 . . . . Hauler Manifests 1 | . 1 . . . . Zone Layout 1 | . . 1 . . . Garrison Registry 1 | . . . . . 1 Fabricator Hacks . | . . . . . . Repair Station Hacks 8 | . . . 8 . . Scan Component 4 | . . . 4 . . Repair 4 | . . . 4 . . Recycling Unit Hacks 2 | . . 2 . . . Report Inventory 1 | . . 1 . . . Retrieve Components 1 | . . 1 . . . Scanalyzer 5 | . . 5 . . . Insert Component 1 | . . 1 . . . Analyze 1 | . . 1 . . . Retrieve Study 3 | . . 3 . . . Garrison Access Hacks 1 | . . . . 1 . Unlock Access 1 | . . . . 1 . Unauthorized Hacks . | . . . . . . Terminals . | . . . . . . Fabricators . | . . . . . . Repair Stations . | . . . . . . Recycling Units . | . . . . . . Scanalyzers . | . . . . . . Garrison Access . | . . . . . . Data Cores Recovered . | . . . . . . Used . | . . . . . . Hacking Detections 7 | . 2 3 1 . 1 Full Trace Events 5 | . . 3 1 . 1 Feedback Events . | . . . . . . Feedback Blocked . | . . . . . . Robot Schematics Acquired . | . . . . . . Robots Built . | . . . . . . Authchips . | . . . . . . Time . | . . . . . . Total Robot Build Rating . | . . . . . . Part Schematics Acquired 1 | . . 1 . . . Parts Built . | . . . . . . Authchips . | . . . . . . Time . | . . . . . . Total Part Build Rating . | . . . . . . Part Studies Acquired 3 | . . 3 . . . Parts Repaired 4 | . . . 4 . . Time 153 | . . . 153 . . Parts Recycled . | . . . . . . Recycled Matter . | . . . . . . Retrieved Matter . | . . . . . . Retrieved Components 2 | . . 2 . . . Parts Scanalyzed 1 | . . 1 . . . Part Schematics Acquired 1 | . . 1 . . . Parts Damaged . | . . . . . . Bothacking | -11 -10 -9 -8 -7 -7 ------------ Run | Yrd Mat Mat Mat Fac Gar Used RIF Installer . | . . . . . . Robots Hacked 1 | . . . . . 1 Non-combat . | . . . . . . Combat 1 | . . . . . 1 Robot Hacks Applied 1 | . . . . . 1 parse_system 1 | . . . . . 1 Relay Couplers Released . | . . . . . . Fabnet Peak Effective % . | . . . . . . Robots Rewired . | . . . . . . Allies Hacked . | . . . . . . Hacks Repelled . | . . . . . . Allies | -11 -10 -9 -8 -7 -7 -------- Run | Yrd Mat Mat Mat Fac Gar Total Allies . | . . . . . . Largest Group . | . . . . . . Highest-Rated Group . | . . . . . . Highest-Rated Ally . | . . . . . . Total Orders . | . . . . . . Ally Attacks . | . . . . . . Total Damage . | . . . . . . Kills . | . . . . . . Allies Corrupted . | . . . . . . Allies Melted . | . . . . . . Intel | -11 -10 -9 -8 -7 -7 ------- Run | Yrd Mat Mat Mat Fac Gar Active Infowar (turns) 1101 | . 186 400 407 108 . Optics 486 | . . 390 96 . . Terrain 134 | . 134 . . . . ECM 967 | . 52 400 407 108 . Robot Analysis Total . | . . . . . . Derelict Logs Recovered . | . . . . . . Drone Launches . | . . . . . . Drone Recoveries . | . . . . . . Exploration | -11 -10 -9 -8 -7 -7 ------------- Run | Yrd Mat Mat Mat Fac Gar Turns Passed 2205 | 76 213 400 522 213 781 Spaces Moved 1186 | 49 157 225 213 101 441 Core 11 | 9 . . . . 2 Treads . | . . . . . . Legs 1175 | 40 157 225 213 101 439 Wheels . | . . . . . . Hover . | . . . . . . Flight . | . . . . . . Fastest Speed 50 | 50 120 120 120 127 120 Average Speed 124 | 127 120 120 123 128 127 Slowest Speed 260 | 200 120 120 130 130 260 Overloaded Moves . | . . . . . . Propulsion Burnouts . | . . . . . . Robots Hopped . | . . . . . . Potential Cave-ins . | . . . . . . Cave-ins Triggered . | . . . . . . Exploration Rate (%) 18 | 3 24 23 15 3 43 Regions Visited 5 Branch Regions . Pre-discovered Areas . | . . . . . . Known Exits Taken 1 | . . . . 1 . Unknown Exits Taken 4 | 1 1 1 1 . . Scrap Searched . | . . . . . . Spaces Dug . | . . . . . . Terrain Destroyed 12 | . . 2 1 9 . Melee . | . . . . . . Projectile 3 | . . 2 1 . . AOE 9 | . . . . 9 . Terrain Rammed . | . . . . . . Walls Destroyed . | . . . . . . Machines Disabled . | . . . . . . Actions | -11 -10 -9 -8 -7 -7 --------- Run | Yrd Mat Mat Mat Fac Gar Total 1645 | 59 181 289 413 151 552 Wait 150 | . 1 2 136 4 7 Move 1180 | 48 156 224 212 100 440 Hop . | . . . . . . Pick Up 42 | 5 7 8 5 5 12 Fast Attach 35 | 6 2 2 6 7 12 Attach 25 | . 4 . 4 6 11 Detach 11 | . 3 . 3 4 1 Swap 21 | . . 6 8 1 6 Drop 36 | . 6 9 10 5 6 Fire 140 | . 2 34 29 19 56 Melee 1 | . . . . . 1 Ram . | . . . . . . Kick 4 | . . 4 . . . Crush . | . . . . . . Escape Stasis . | . . . . . . Rewire . | . . . . . . Trap . | . . . . . . Miscellaneous . | . . . . . . Route ------- -11/Scrapyard -10/Materials -9/Materials (discovered 2 exits: *Mat / [*Min]) -8/Materials -7/Factory (discovered 2 exits: [*Low] / Gar) -7/Garrison (discovered 3 exits: [*Fac x3]) History --------- Turn | Location | Event 20 | -11/Scrapyard | Discovered new exit (range 16) 77 | -11/Scrapyard | Entered Materials 245 | -10/Materials | Discovered new exit (range 13) 290 | -10/Materials | Entered another Materials area 290 | -9/Materials | Evolved 2 slots: Propulsion x1, Utility x1 321 | -9/Materials | Build established: Mutant 458 | -9/Materials | Discovered new exit (range 18) 688 | -9/Materials | Discovered new exit (range 3) 690 | -9/Materials | Entered another Materials area 690 | -8/Materials | Evolved 2 slots: Propulsion x1, Weapon x1 909 | -8/Materials | Repaired Imp. Light Cannon+ 961 | -8/Materials | Repaired Adv. Beam Cannon 995 | -8/Materials | Repaired Rocket Launcher+ 1118 | -8/Materials | Repaired Lgt. Nuclear Core 1196 | -8/Materials | Discovered new exit (range 13) 1212 | -8/Materials | Entered Factory 1212 | -7/Factory | Evolved 2 slots: Power x1, Utility x1 1263 | -7/Factory | Discovered new exit (range 14) 1290 | -7/Factory | Garrison activated, responded to threat 1324 | -7/Factory | System corruption reached 10% 1361 | -7/Factory | Lost 8 parts (2p3u3w) 1399 | -7/Factory | Identified exit to Garrison 1425 | -7/Factory | Entered Garrison 1515 | -7/Garrison | Triggered checkpoint 1692 | -7/Garrison | Triggered checkpoint 1733 | -7/Garrison | Lost 3 parts (1p1n1u) 1791 | -7/Garrison | Discovered new exit (range 15) 1806 | -7/Garrison | Attempted to access garrison exit controls, blocked by remote lockdown 1863 | -7/Garrison | Lost 3 parts (1p1n1u) 1909 | -7/Garrison | Discovered new exit (range 80) 1909 | -7/Garrison | Discovered new exit (range 15) 1909 | -7/Garrison | Discovered new exit (range 44) 1938 | -7/Garrison | Build established: Scavenger-Gunner 1983 | -7/Garrison | Triggered checkpoint 2002 | -7/Garrison | Core integrity fell below 50% 2196 | -7/Garrison | Core integrity fell below 20% 2206 | -7/Garrison | Destroyed by H-55 Commando with Gauss Rifle Last Messages --------------- 02180_ Flak Gun destroyed. 02183_ Penetrated by Slug. 02183_ Autogun destroyed. 02187_ Hvy. Laser destroyed. 02188_ Slug penetrates Wall. 02189_ Penetrated by Slug. 02189_ Lgt. Nuclear Core destroyed. 02190_ Propulsion Shielding destroyed. 02192_ System corrupted: Matter fused (-9). 02195_ Particle Gun destroyed. 02198_ Penetrated by Slug. 02198_ Lgt. Nuclear Core destroyed. 02200_ Aluminum Leg destroyed. 02202_ Jacked X-57 Shotgunner... >>parse_system Reading system data... 02203_ Penetrated by Slug. 02203_ Aluminum Leg destroyed. 02204_ Slug penetrates Wall. 02206_ Penetrated by Slug. Map ----- +----------------------------------------------------+ | | | | | | | | | | | | | ?????????????????????????????????????????????????? | | ??????????###########????????????????????????????? | | ??????????#"""""""""#?????????????????????######## | | ??????????#"=!]*|!]"#?????????????????????#"# #"# | | ??????????## ##?????????????????????#" "# | | ??????????##^## ## ##?????????????????????#" ^^ "# | | ??????????# ##### #?????????????????????#" ^^ "# | | ??????????## ##### ##?????????????????????#"# #"# | | ???????????# #??????????????????????### ### | | ???????????## ##????????????????????????# #?? | | ?????###########+############################ #?? | | ?????# [ ^ ! #?? | | ?????# [ #?? | | ?????# ##################x ########### ######?? | | ?????# #?????????###### + #?????????# #??????? | | ?????# #???????### #### #########?#####??????? | | ?????# #???????# xh #????????????? | | ?????# #???????# = #??#######???? | | ?????# #???????# #??#"""""#???? | | ?????# #???????# @ #??#" "#???? | | ?????# #???????# ##### "#???? | | ?????# #######?# "#???? | | ????## ## ### ### #"#???? | | ????#T ## = #?# ###???? | | ????## # ## ! #?######?????? | | ##???#^^# ## // < #????????????? | | #???# ## ### /=[ #????????????? | | #???# #######?# = #????????????? | | #???# #???????# = #????????????? | | #???#^^#???????# *% ######???????? | | #???# #???????# h= ##"T"#???????? | | #???# #???????# "#???????? | | #???# ######### ######???????? | | ##### #????????????? | | ### + #????????????? | | ??# ## ###########+#################????????????? | | ??# ## #?????????# #????????????????????????????? | | ??# ## #?######### #????????????????????????????? | | ??# ## #?#! ##[ ## #????????????????????????????? | | ??# ## #?#! ##[ ## #????????????????????????????? | | ###+## #?#! ##[ ## #????????????????????????????? | | ## #?## ### ## #????????????????????????????? | | ## ##?# #?# ## #????????????????????????????? | | % ### ### ## #????????????????????????????? | +----------------------------------------------------+ Best States ------------- Heat Dissipation 61 Energy Generation 27 Energy Capacity 480 Matter Stores 450 Matter Capacity 450 Sight Range 18 Terrain Scan Range 14 Terrain Scan Density 10 ECM Strength 1 Armor Coverage 150 Propulsion Shielding 33 Evasion (%) 55 Targeting Accuracy 6 Item Schematics ----------------- Rocket Launcher | -9/Materials | Scanalyzed Robot Schematics ------------------ None Fabricated ------------ Nothing Repaired ---------- Imp. Light Cannon | 6% | -8/Materials Adv. Beam Cannon | 20% | -8/Materials Rocket Launcher | 68% | -8/Materials Lgt. Nuclear Core | 40% | -8/Materials Studied --------- EM Pulse Gun | -9/Materials | Hacked Rocket Launcher | -9/Materials | Hacked Imp. Light Cannon | -9/Materials | Hacked Alien Tech Used ----------------- None Achievements -------------- Ghost 'Em That Tickles Challenges ------------ None Game ------ Seed StasisGreaterCasing Manual? 0 Play Time 00:28:09 Cumulative 13.7 hours Start 2026.09.01 @ 01:03:09 End 2026.09.01 @ 01:29:48 Sessions 1 Manual Loads 0 Difficulty Rogue Special Mode None Game No. 32 Rogue 32 Adventurer 0 Explorer 0 Win Type - Total 0 Types 0/0/0/0/0/0/0/0/0/0 Lore% 8 Gallery% 19 Achievement% 11 Wizard Run 0 Options --------- Layout 1 ASCII 0 Keyboard 1 Movement Numpad Keybinds 0 Fullscreen 1 Font 24/Smallcaps Map View 50x35 Zoom Use 0% Tactical HUD 1 Map Filters NONE Filters NONE Steam 1 RUN: 9fa9dcf2-08a5-4096-99bc-d8796658a577